bitfinex-derivatives/quotes_ETHF0:USTF0_20240830
["timestamp","ask_amount","ask_price","bid_price","bid_amount"]
[1725025104987,0.39563,2527.2,2526.9,0.00593437]
[1725025105503,4.31620932,2527.3,2526.9,0.00593437]
[1725025105691,0.00593437,2527.4,2527.2,0.39562]
[1725025105889,0.00593437,2527.4,2527.3,0.39561]
[1725025106400,0.00593437,2527.4,2527.2,3.60342]
[1725025106598,0.00593437,2527.4,2527.3,0.39561]
[1725025107099,0.00593437,2527.4,2527.3,3.9568]
[1725025107401,0.00593437,2527.4,2527.2,3.60342]
[1725025107590,0.00593437,2527.4,2526.9,0.00593437]
[1725025107796,0.39566,2527.0,2526.9,0.00593437]
[1725025108102,1.38482,2527.0,2526.9,0.00593437]
[1725025108404,0.39566,2527.0,2526.9,0.00593437]
[1725025108592,0.3686,2527.1,2526.9,0.00593437]
[1725025108799,0.39566,2527.0,2526.9,0.00593437]
[1725025109299,4.35326,2527.0,2526.9,0.00593437]
[1725025109701,16.84271243,2527.0,2526.9,0.00593437]
[1725025110307,0.39575,2526.5,2526.2,0.39579]
[1725025110495,0.39572,2526.7,2526.3,0.39576]
[1725025110694,0.39573,2526.6,2526.2,0.39579]
[1725025110897,0.39574,2526.5,2526.1,3.6036]
[1725025111202,0.3957,2526.8,2526.4,3.60356]
[1725025111502,4.48206882,2526.7,2526.4,3.60355]
[1725025111702,4.48206882,2526.7,2526.4,3.2078]
[1725025112002,4.48206882,2526.8,2526.7,0.39571]
[1725025112207,3.2078,2527.0,2526.7,0.3957]
[1725025112496,0.98911,2527.2,2526.5,6.08323]
[1725025112699,0.98911,2527.2,2526.6,0.39572]
[1725025112895,0.3957,2526.8,2526.5,1.1275]
[1725025113095,0.39568,2526.9,2526.5,1.16114]
[1725025113402,4.57155207,2526.8,2526.7,3.2078]
[1725025113599,4.57155207,2526.8,2526.7,3.60351]
[1725025113897,3.2078,2527.2,2526.7,3.2078]
[1725025114200,4.43499356,2526.9,2526.6,0.39571]
[1725025114501,0.39568,2526.9,2526.6,0.39571]
[1725025114696,0.39568,2526.9,2526.3,3.2078]
[1725025114697,7.1654,2526.9,2526.3,3.2078]
[1725025114897,0.39576,2526.4,2526.3,3.2078]
[1725025115196,1.37207,2526.8,2526.3,3.2078]
[1725025115500,0.39576,2526.4,2526.3,3.2078]
[1725025115700,0.39576,2526.4,2526.0,0.00593437]
[1725025116004,0.39595,2525.2,2524.9,3.2078]
[1725025116299,0.39602,2524.8,2524.4,3.2078]
[1725025116501,0.39599,2525.0,2524.6,0.39604]
[1725025116700,0.39599,2524.9,2524.5,0.39605]
[1725025116905,4.55152398,2524.9,2524.5,0.39605]
[1725025117196,0.40191437,2525.0,2524.4,3.21175622]
[1725025117405,0.00593437,2525.0,2524.4,7.77175622]
[1725025117599,0.00593437,2525.0,2524.8,0.396]
[1725025117800,0.00593437,2525.0,2524.7,3.60381]
[1725025118000,0.00593437,2525.0,2524.9,0.39599]
[1725025118203,0.00593437,2525.0,2524.7,3.60381]
[1725025118397,0.00593437,2525.0,2524.7,3.2078]
[1725025118602,0.00593437,2525.0,2524.8,0.39599]
[1725025118803,0.00593437,2525.0,2524.9,0.39599]
[1725025119013,3.5979,2525.9,2525.3,0.39593]
[1725025119301,3.5979,2525.9,2525.5,0.3959]
[1725025119499,4.21347894,2525.6,2525.5,0.3959]
[1725025119703,3.2078,2525.9,2525.4,0.3959]
[1725025120004,3.21373437,2525.9,2525.4,0.3959]
[1725025120193,3.21373437,2525.9,2525.3,0.39592]
[1725025120395,4.61197468,2525.8,2525.3,0.39592]
[1725025120614,4.21612468,2525.8,2525.4,0.39591]
[1725025120811,4.21612468,2525.8,2525.5,3.2078]
[1725025121008,0.00593437,2525.9,2525.5,3.2078]
[1725025121309,4.45361438,2525.8,2525.6,0.39588]
[1725025121610,0.00593437,2525.9,2525.8,0.39585]
[1725025121902,0.00593437,2525.9,2525.8,3.60365]
[1725025122097,0.00593437,2525.9,2525.8,7.56285]
[1725025122294,3.956,2526.6,2526.2,0.39577]
[1725025122493,0.75441,2526.7,2526.1,3.2078]
[1725025122701,4.28422605,2526.5,2526.2,0.39578]
[1725025122903,4.28422605,2526.6,2526.1,0.39579]
[1725025123104,3.2078,2526.7,2526.2,0.39578]
[1725025123312,0.39573,2526.6,2526.2,0.00593437]
[1725025123609,4.75545871,2526.6,2526.2,0.00593437]
[1725025123909,4.35972871,2526.6,2526.2,0.00593437]
[1725025124096,0.00593437,2526.7,2526.2,0.00593437]
[1725025124499,0.00593437,2526.7,2526.4,0.39574]
[1725025124908,0.00593437,2526.7,2526.2,0.00593437]
[1725025125113,0.00593437,2526.7,2526.4,0.39575]
[1725025125708,0.00593437,2526.7,2526.3,0.39577]
[1725025126006,0.40164437,2526.7,2526.3,0.39576]
[1725025126219,0.40164437,2526.7,2526.2,0.00593437]
[1725025126220,7.44421552,2526.6,2526.2,0.00593437]
[1725025126513,0.39577,2526.3,2526.2,0.00593437]
[1725025126910,0.39585,2525.8,2525.6,3.597]
[1725025127114,0.39585,2525.8,2525.6,3.2078]
[1725025127299,0.3831,2526.2,2525.6,3.2078]
[1725025127716,0.39587,2525.7,2525.6,3.2078]
[1725025127925,44.3909,2526.2,2525.6,3.2078]
[1725025128113,0.3831,2526.2,2525.6,3.2078]
[1725025128410,4.45598805,2526.1,2525.6,3.2078]
[1725025128609,4.45598805,2526.1,2526.0,0.39582]
[1725025128819,0.39576,2526.4,2525.9,3.60362]
[1725025128820,0.39577,2526.3,2525.9,3.60362]
[1725025129005,3.572,2526.5,2525.9,3.2078]
[1725025129204,3.572,2526.5,2525.7,0.3761]
[1725025129205,0.00593437,2526.7,2526.2,3.2078]
[1725025129403,0.00593437,2526.7,2526.6,0.39572]
[1725025129919,0.00593437,2526.7,2526.6,4.72942]
[1725025130507,0.00593437,2526.7,2526.6,5.09372]
[1725025131015,0.00593437,2526.7,2526.6,5.48092]
[1725025131712,0.00593437,2526.7,2526.6,1.13612]
[1725025132317,0.00593437,2526.7,2526.6,5.09372]
[1725025132612,0.00593437,2526.7,2526.6,11.09372]
[1725025132815,0.7785,2527.4,2527.0,0.39566]
[1725025132816,3.5907,2527.4,2527.0,0.39566]
[1725025133019,4.35359,2527.5,2526.6,10.698]
[1725025133020,3.958,2527.5,2526.8,3.2078]
[1725025133317,0.354,2527.6,2527.2,0.39563]
[1725025133516,3.2078,2527.9,2527.1,3.2078]
[1725025133710,0.00593437,2527.8,2527.5,0.39557]
[1725025134215,0.00593437,2527.8,2527.4,0.39559]
[1725025134529,0.00593437,2527.8,2527.4,3.2078]
[1725025134903,0.39557,2527.6,2527.4,3.2078]
[1725025135107,4.15719782,2527.7,2527.4,3.2078]
[1725025135309,0.00593437,2527.8,2527.4,3.2078]
[1725025135521,0.40147437,2527.8,2527.4,3.2078]
[1725025135908,0.00593437,2527.8,2527.4,3.2078]
[1725025136115,4.25031385,2527.7,2527.4,3.2078]
[1725025136311,0.39558,2527.5,2527.4,3.2078]
[1725025136512,0.39559,2527.5,2527.2,0.00593437]
[1725025136714,3.60928437,2527.8,2527.2,0.40155437]
[1725025136916,3.60928437,2527.8,2527.2,0.00593437]
[1725025137117,3.60928437,2527.8,2527.3,0.39561]
[1725025137425,4.30641528,2527.7,2527.2,0.00593437]
[1725025137621,4.30641528,2527.7,2527.3,0.39561]
[1725025138131,3.60928437,2527.8,2527.3,0.39561]
[1725025138313,3.21373437,2527.8,2527.4,0.39559]
[1725025138714,3.60927437,2527.8,2527.3,0.3956]
[1725025138924,3.21373437,2527.8,2527.2,0.00593437]
[1725025139120,0.00593437,2527.8,2527.7,0.39555]
[1725025139323,0.00593437,2527.8,2527.5,0.7522]
[1725025139517,0.00593437,2527.8,2527.4,3.2078]
[1725025139715,4.28037131,2527.8,2527.4,3.2078]
[1725025139938,0.40147437,2527.8,2527.4,3.60339]
[1725025140223,0.40147437,2527.8,2527.4,3.2078]
[1725025140224,0.39557,2527.6,2527.4,3.2078]
[1725025140420,4.60334341,2527.7,2527.4,3.2078]
[1725025140612,0.39558,2527.5,2527.4,3.2078]
[1725025140817,4.60336341,2527.5,2527.4,3.2078]
[1725025141023,0.39561,2527.3,2527.2,0.00593437]
[1725025141424,0.39564,2527.2,2526.8,3.2078]
[1725025141729,4.16727232,2527.3,2526.8,3.2078]
[1725025142026,0.39558,2527.5,2527.2,0.39563]
[1725025142327,0.39558,2527.5,2526.8,3.2078]
[1725025142328,4.26082007,2527.5,2526.8,3.2078]
[1725025142531,4.26082007,2527.5,2526.9,0.40160437]
[1725025142532,0.39564,2527.2,2526.9,0.40160437]
[1725025142722,0.98897,2527.5,2526.9,0.40160437]
[1725025142921,3.2078,2527.6,2526.9,0.00593437]
[1725025143136,0.39559,2527.5,2527.2,0.39562]
[1725025143426,0.39564,2527.2,2526.9,3.60941437]
[1725025143623,4.48879013,2527.7,2526.9,3.21373437]
[1725025143624,0.39565,2527.1,2526.9,3.21373437]
[1725025143819,3.2078,2527.6,2526.9,3.21373437]
[1725025144129,4.25776268,2527.0,2526.9,3.21373437]
[1725025144517,4.35326,2527.0,2526.9,3.21373437]
[1725025144943,15.54833176,2527.0,2526.9,0.00593437]
[1725025145224,0.9892,2526.9,2526.2,0.39579]
[1725025145529,4.18057112,2526.8,2526.0,4.107]
[1725025145832,0.98916,2527.0,2526.3,0.39576]
[1725025146125,0.39573,2526.6,2526.4,0.00395622]
[1725025146329,4.18057112,2526.8,2526.4,0.00395622]
[1725025146517,0.39572,2526.7,2526.4,0.00395622]
[1725025146831,0.9892,2526.9,2526.4,0.00395622]
[1725025146832,0.39573,2526.6,2526.4,0.00395622]
[1725025147233,4.50377606,2526.8,2526.4,0.00395622]
[1725025147431,0.39567,2527.0,2526.6,0.39571]
[1725025147618,0.3701,2527.1,2526.9,0.39567]
[1725025147819,3.2078,2527.7,2526.8,3.2078]
[1725025148023,0.39564,2527.2,2526.6,4.107]
[1725025148219,4.26494732,2527.3,2527.1,0.39563]
[1725025148423,4.62284732,2527.5,2527.1,0.39564]
[1725025148424,0.3579,2527.5,2527.1,0.39564]
[1725025148626,0.75349,2527.5,2527.2,0.39563]
[1725025149026,0.3533,2527.7,2526.9,4.107]
[1725025149226,0.74886,2527.7,2526.9,4.30054468]
[1725025149429,0.00593437,2527.8,2527.1,7.7678]
[1725025149730,0.00593437,2527.8,2527.7,3.60335]
[1725025149925,0.00593437,2527.8,2527.7,0.39555]
[1725025150323,3.2078,2528.3,2528.1,0.39548]
[1725025150634,3.2078,2528.3,2527.7,3.2078]
[1725025150935,4.74335832,2528.2,2527.6,3.2078]
[1725025151230,0.40140437,2528.2,2527.8,0.39553]
[1725025151430,0.40140437,2528.2,2527.8,0.39552]
[1725025151431,4.13140657,2528.1,2527.8,0.39552]
[1725025151625,0.00593437,2528.2,2528.0,0.3955]
[1725025151932,0.00593437,2528.2,2527.6,7.77373437]
[1725025151933,0.00593437,2528.2,2527.9,3.2078]
[1725025152125,4.13140657,2528.1,2527.7,0.39554]
[1725025152324,0.00593437,2528.2,2527.8,3.2078]
[1725025152521,0.00593437,2528.2,2528.1,0.39549]
[1725025153033,0.00593437,2528.2,2527.8,3.2078]
[1725025153231,0.00593437,2528.2,2528.1,0.39549]
[1725025153932,0.00593437,2528.2,2528.1,4.35069]
[1725025154237,0.3954,2528.7,2528.1,13.163]
[1725025154432,0.3954,2528.7,2528.3,0.39545]
[1725025154928,4.46379564,2528.6,2528.2,3.2078]
[1725025155131,4.46379564,2528.6,2527.9,0.39551]
[1725025155328,0.39548,2528.2,2527.8,3.60333]
[1725025155526,0.98861,2528.4,2527.8,3.2078]
[1725025155731,0.39549,2528.2,2527.8,3.60334]
[1725025155927,0.98861,2528.4,2527.8,3.2078]
[1725025155928,0.3955,2528.1,2527.8,3.2078]
[1725025156131,0.39547,2528.3,2527.8,3.2078]
[1725025156326,0.39548,2528.2,2527.8,3.60333]
[1725025156527,4.47405331,2528.2,2527.7,0.39555]
[1725025156735,0.3955,2528.1,2527.7,0.39555]
[1725025156932,0.39551,2528.0,2527.7,0.39554]
[1725025157237,0.39549,2528.1,2527.7,0.39554]
[1725025157436,0.39552,2527.9,2527.6,0.40149437]
[1725025157831,0.39551,2528.0,2527.7,0.39555]
[1725025158027,44.0078,2528.1,2527.6,0.00593437]
[1725025158235,0.39555,2527.7,2527.6,0.00593437]
[1725025158729,8.69867525,2527.7,2527.6,0.00593437]
[1725025158941,9.68756525,2527.7,2527.6,0.00593437]
[1725025159146,17.51092525,2527.7,2526.9,7.3148]
[1725025159354,0.39566,2527.0,2526.9,3.2078]
[1725025159530,12.11492525,2527.7,2526.9,3.2078]
[1725025159531,0.98893,2527.6,2526.9,3.2078]
[1725025159847,0.39566,2527.0,2526.9,3.2078]
[1725025160231,0.39568,2526.9,2526.7,0.00593437]
[1725025160436,0.39569,2526.9,2526.7,0.00593437]
[1725025160640,8.63060167,2526.8,2526.7,0.00593437]
[1725025160841,4.67300167,2526.8,2526.7,0.00593437]
[1725025161144,4.35329,2526.8,2526.7,0.00593437]
[1725025161328,8.50187023,2526.8,2526.7,0.00593437]
[1725025161833,15.49111023,2526.8,2526.7,0.00593437]
[1725025162032,15.87651023,2526.8,2526.7,0.00593437]
[1725025162246,0.98931,2526.7,2526.0,0.39581]
[1725025162538,0.98931,2526.7,2525.9,0.78283]
[1725025162539,0.98932,2526.6,2525.9,0.78283]
[1725025162738,0.39578,2526.3,2525.9,0.387]
[1725025162946,0.9894,2526.4,2525.8,3.2078]
[1725025163135,0.39581,2526.1,2525.8,3.2078]
[1725025163335,0.39579,2526.2,2525.8,3.21175622]
[1725025163640,0.39579,2526.2,2525.9,0.39583]
[1725025163829,0.39579,2526.2,2525.8,3.60759622]
[1725025164035,0.39578,2526.3,2525.9,0.39583]
[1725025164231,3.2078,2526.5,2525.8,7.77175622]
[1725025164437,0.39576,2526.4,2525.8,4.56395622]
[1725025164746,0.39576,2526.4,2526.0,0.39581]
[1725025164935,3.2078,2526.5,2526.1,3.2078]
[1725025165137,3.2078,2526.5,2526.2,0.39578]
[1725025165335,3.2078,2526.5,2526.3,0.39577]
[1725025165642,4.41278482,2526.4,2525.9,0.3582]
[1725025165946,3.2078,2526.5,2526.1,3.2078]
[1725025166146,0.39579,2526.2,2526.0,3.2078]
[1725025166337,0.3958,2526.1,2525.8,0.00395622]
[1725025166540,4.66483212,2526.1,2526.0,3.2078]
[1725025166744,0.3958,2526.1,2526.0,3.2078]
[1725025166939,0.3958,2526.1,2525.8,0.39979622]
[1725025166940,3.9584,2526.1,2525.8,0.00395622]
[1725025167243,4.26903212,2526.1,2526.0,3.60362]
[1725025167441,3.2078,2526.5,2526.0,3.2078]
[1725025167637,0.39579,2526.2,2526.0,3.2078]
[1725025168249,1.38542,2525.9,2525.8,0.00395622]
[1725025168751,9.78039942,2525.9,2525.8,0.00395622]
[1725025169443,8.79080942,2525.9,2525.8,0.00395622]
[1725025169840,9.78039942,2525.9,2525.8,0.00395622]
[1725025170039,8.79080942,2525.9,2525.8,0.00395622]
[1725025170634,9.78039942,2525.9,2525.8,0.00395622]
[1725025171140,18.98819942,2525.9,2525.8,0.00395622]
[1725025171440,12.98819942,2525.9,2525.8,0.00395622]
[1725025171947,11.99860942,2525.9,2525.8,0.00395622]
[1725025172138,8.79080942,2525.9,2525.8,0.00395622]
[1725025172338,9.78039942,2525.9,2525.8,0.00395622]
[1725025172541,19.97778942,2525.9,2525.8,0.00395622]
[1725025172946,19.97778942,2525.9,2525.8,6.22e-06]
[1725025173640,18.98819942,2525.9,2525.8,6.22e-06]
[1725025174036,19.97778942,2525.9,2525.8,6.22e-06]
[1725025176939,21.95697942,2525.9,2525.8,6.22e-06]
[1725025177345,22.34127942,2525.9,2525.8,6.22e-06]
[1725025177554,22.34127942,2525.9,2524.0,0.3752]
[1725025177555,1.97942,2525.7,2524.0,0.3752]
[1725025177853,1.97942,2525.7,2523.7,4.107]
[1725025177854,3.2078,2524.3,2523.7,4.107]
[1725025178048,3.2078,2524.3,2523.5,0.93075397]
[1725025178250,4.47251055,2524.2,2523.6,3.2078]
[1725025178447,3.2078,2524.7,2523.6,3.2078]
[1725025178753,0.39614,2524.0,2523.7,0.39617]
[1725025178952,0.39616,2523.9,2523.5,0.93075397]
[1725025179253,0.39616,2523.9,2523.6,0.39619]
[1725025180045,0.39614,2524.0,2523.7,0.39618]
[1725025180252,4.20395437,2524.4,2523.8,0.39616]
[1725025180471,0.39614,2524.0,2523.7,0.39617]
[1725025181353,0.39613,2524.1,2523.7,0.39617]
[1725025181553,3.21373437,2524.4,2523.6,3.2078]
[1725025181554,0.39613,2524.0,2523.6,3.2078]
[1725025181755,4.51895845,2524.3,2524.2,0.3961]
[1725025181944,0.00593437,2524.4,2524.3,0.39609]
[1725025182353,0.39598,2525.0,2524.7,0.39602]
[1725025182546,7.7678,2525.3,2524.5,3.60384]
[1725025182851,4.355,2524.9,2524.6,0.39603]
[1725025183049,3.959,2524.9,2524.6,0.39603]
[1725025183250,0.39595,2525.2,2524.5,3.2078]
[1725025183449,0.00593437,2525.1,2524.9,0.39598]
[1725025183655,0.00593437,2525.1,2524.6,0.00593437]
[1725025183856,0.00593437,2525.1,2525.0,0.39598]
[1725025184155,0.00593437,2525.1,2524.6,3.96673437]
[1725025184353,0.00593437,2525.1,2525.0,0.39598]
[1725025184660,0.00593437,2525.1,2525.0,3.60378]
[1725025184847,0.00593437,2525.1,2525.0,7.56378]
[1725025185356,0.00593437,2525.1,2525.0,4.35598]
[1725025185753,0.00593437,2525.1,2525.0,3.96]
[1725025186052,0.00593437,2525.1,2525.0,0.39598]
[1725025186246,0.00593437,2525.1,2524.9,0.39598]
[1725025186443,0.00593437,2525.1,2525.0,0.39598]
[1725025186855,0.40189437,2525.1,2524.8,0.3643]
[1725025187057,0.40190437,2525.1,2524.8,0.7603]
[1725025187256,0.39598,2525.0,2524.8,0.7603]
[1725025187648,0.39599,2524.9,2524.8,0.3643]
[1725025188148,0.39598,2525.0,2524.8,0.3643]
[1725025188544,0.00593437,2525.1,2524.8,0.3643]
[1725025188753,0.00593437,2525.1,2525.0,0.39598]
[1725025189160,0.00593437,2525.1,2525.0,4.35598]
[1725025189453,0.00593437,2525.1,2525.0,0.39598]
[1725025189655,0.40189437,2525.1,2524.9,0.39598]
[1725025190056,0.40189437,2525.1,2524.8,0.3643]
[1725025190057,0.00593437,2525.1,2525.0,0.39598]
[1725025190249,0.00593437,2525.1,2525.0,3.60378]
[1725025190551,0.00593437,2525.1,2524.8,0.3643]
[1725025190752,0.40190437,2525.1,2524.9,0.39598]
[1725025191657,0.40190437,2525.1,2524.8,0.3643]
[1725025191853,0.39598,2525.0,2524.9,0.39598]
[1725025192061,0.40189437,2525.1,2524.9,4.35678]
[1725025192243,0.40189437,2525.1,2524.9,0.39598]
[1725025192859,0.40189437,2525.1,2524.8,0.3643]
[1725025192860,0.39599,2524.9,2524.8,0.3643]
[1725025193050,0.00593437,2525.1,2524.9,0.39598]
[1725025193358,0.00593437,2525.1,2525.0,0.39598]
[1725025193865,3.2078,2526.1,2525.0,17.7278]
[1725025194160,3.2078,2526.1,2525.8,0.39584]
[1725025194355,0.98948,2526.2,2525.4,3.2078]
[1725025194550,0.39584,2525.9,2525.7,0.39586]
[1725025194754,4.50268365,2526.1,2525.7,3.2078]
[1725025194963,4.50268365,2526.1,2526.0,0.39582]
[1725025195265,4.10968825,2526.2,2526.1,0.3958]
[1725025195266,0.00593437,2526.2,2526.1,0.3958]
[1725025195453,0.00593437,2526.2,2525.9,0.00593437]
[1725025195646,0.00593437,2526.2,2526.1,0.3958]
[1725025196254,0.00593437,2526.2,2526.0,0.39581]
[1725025196665,0.40173437,2526.2,2525.9,0.00593437]
[1725025196852,0.39582,2526.0,2525.9,0.00593437]
[1725025197154,4.97985386,2526.1,2525.9,0.00593437]
[1725025197358,0.39582,2526.0,2525.9,0.00593437]
[1725025197559,8.54365858,2526.0,2525.9,0.00593437]
[1725025197963,4.58445858,2526.0,2525.9,0.00593437]
[1725025198457,8.54365858,2526.0,2525.9,0.00593437]
[1725025198662,15.53320858,2526.0,2525.9,0.00593437]
[1725025198860,18.74100858,2526.0,2525.9,0.00593437]
[1725025199051,19.73055858,2526.0,2525.9,0.00593437]
[1725025199666,60.53055858,2526.0,2525.9,0.00593437]
[1725025200261,56.33320858,2526.0,2525.9,0.00593437]
[1725025200662,59.54100858,2526.0,2525.9,0.00593437]
[1725025201258,60.53055858,2526.0,2525.9,0.00593437]
[1725025201663,59.54100858,2526.0,2525.9,0.00593437]
[1725025201866,60.53055858,2526.0,2525.9,0.00593437]
[1725025202562,0.9896,2525.9,2524.9,0.39599]
[1725025202768,0.9896,2525.9,2525.2,0.39594]
[1725025202769,0.39588,2525.6,2525.2,0.39594]
[1725025202978,0.39588,2525.6,2525.0,3.2078]
[1725025203167,4.4260143,2525.5,2525.2,0.39594]
[1725025203668,4.8219243,2525.5,2525.1,0.00593437]
[1725025203965,4.8219243,2525.5,2525.2,0.39594]
[1725025204160,4.4260143,2525.5,2525.4,0.39591]
[1725025204366,0.7492,2526.3,2525.9,0.39583]
[1725025204555,1.14498,2526.3,2526.0,0.39582]
[1725025204760,3.2078,2526.6,2526.1,0.3958]
[1725025205262,0.39575,2526.5,2526.1,0.3958]
[1725025205456,0.39576,2526.4,2526.1,0.3958]
[1725025205660,0.39576,2526.4,2525.7,0.98967]
[1725025205661,0.40172437,2526.2,2525.7,3.2078]
[1725025205967,0.39582,2526.0,2525.7,3.2078]
[1725025206266,5.54955,2526.0,2525.1,0.40188437]
[1725025206456,3.2078,2526.1,2525.5,0.39589]
[1725025206457,3.60365,2525.8,2525.5,0.39589]
[1725025206664,0.39588,2525.6,2525.4,0.39591]
[1725025206963,4.28525804,2525.7,2525.1,0.00593437]
[1725025207167,0.43346279,2525.5,2525.1,0.00593437]
[1725025207463,4.15876883,2525.8,2525.1,0.40188437]
[1725025207769,1.38581,2525.2,2525.1,0.00593437]
[1725025208266,15.55855292,2525.2,2525.1,0.00593437]
[1725025208464,45.78598292,2525.2,2525.1,0.00593437]
[1725025208853,4.21274292,2525.2,2525.1,0.40189437]
[1725025209052,3.96,2525.2,2525.1,0.00593437]
[1725025209261,0.39594,2525.2,2525.1,0.00593437]
[1725025209665,4.54990849,2525.2,2525.1,0.00593437]
[1725025209860,0.39594,2525.2,2525.1,0.00593437]
[1725025210055,0.39594,2525.3,2525.1,0.00593437]
[1725025211069,4.76695369,2525.5,2525.1,0.40188437]
[1725025211267,7.1668,2525.7,2525.1,0.40188437]
[1725025211268,7.1668,2525.7,2525.5,0.3959]
[1725025211568,4.3831437,2525.6,2525.2,3.5965]
[1725025211755,0.39593,2525.3,2525.2,3.2078]
[1725025212163,0.7200823,2525.3,2525.2,3.2078]
[1725025212364,0.39594,2525.2,2525.1,0.00593437]
[1725025212866,8.85997204,2525.2,2525.1,0.00593437]
[1725025213067,9.84984204,2525.2,2525.1,0.00593437]
[1725025213568,8.85997204,2525.2,2525.1,0.00593437]
[1725025214072,0.39594,2525.2,2525.1,0.00593437]
[1725025214259,4.65870214,2525.2,2525.1,0.00593437]
[1725025214465,4.26276214,2525.2,2525.1,10.36189437]
[1725025214768,3.2078,2526.0,2525.2,0.39594]
[1725025214960,0.39589,2525.6,2525.3,0.39593]
[1725025215165,4.56309279,2525.7,2525.6,0.39588]
[1725025215469,0.39581,2526.1,2525.8,0.39585]
[1725025215664,0.00593437,2526.2,2525.7,0.39586]
[1725025215665,0.39582,2526.0,2525.7,0.39586]
[1725025215866,4.51304954,2526.0,2525.5,0.39589]
[1725025216063,4.51304954,2526.1,2525.3,7.7678]
[1725025216266,0.00593437,2526.2,2525.6,3.2078]
[1725025216463,0.98951,2526.1,2525.7,0.3881]
[1725025216666,0.39585,2525.8,2525.6,3.2078]
[1725025216864,5.19648192,2526.1,2525.6,3.60368]
[1725025217064,0.39587,2525.7,2525.6,3.2078]
[1725025217272,0.98955,2526.0,2525.6,3.2078]
[1725025217775,0.39587,2525.7,2525.6,3.2078]
[1725025218576,0.39594,2525.2,2524.8,3.2078]
[1725025218878,0.39594,2525.2,2524.7,4.38441]
[1725025219168,8.80420872,2525.2,2524.7,4.38441]
[1725025219372,8.80420872,2525.2,2524.7,0.3881]
[1725025219567,9.79407872,2525.2,2524.7,0.3881]
[1725025219968,8.80420872,2525.2,2524.9,0.39599]
[1725025220267,4.56,2525.8,2525.0,3.2078]
[1725025220268,3.2078,2525.8,2525.0,3.2078]
[1725025220469,3.2078,2525.8,2525.1,0.40188437]
[1725025220777,0.39591,2525.5,2525.2,0.39594]
[1725025221474,0.39591,2525.5,2525.1,0.40188437]
[1725025221669,0.98967,2525.7,2525.1,0.00593437]
[1725025221872,3.2078,2525.8,2525.1,0.00593437]
[1725025221873,0.39594,2525.2,2525.1,0.00593437]
[1725025222167,4.60499392,2525.2,2525.1,0.00593437]
[1725025222375,8.56499392,2525.2,2525.1,0.00593437]
[1725025226674,9.55486392,2525.2,2525.1,0.00593437]
[1725025227666,3.2078,2525.5,2525.1,0.00593437]
[1725025227876,0.7436,2525.7,2525.1,0.00593437]
[1725025228170,0.39593,2525.3,2525.2,0.59948823]
[1725025228572,0.39593,2525.3,2525.1,0.00593437]
[1725025228573,0.73030681,2525.3,2525.1,0.00593437]
[1725025228769,0.73030681,2525.3,2525.2,0.99543451]
[1725025228770,0.33437681,2525.3,2525.2,0.99543451]
[1725025229079,0.39587,2525.7,2525.5,0.39589]
[1725025229277,4.35484,2525.9,2525.2,0.3835]
[1725025229478,3.959,2525.9,2525.3,0.59931502]
[1725025229675,0.39587,2525.7,2525.5,0.3959]
[1725025229868,4.52259185,2525.8,2525.2,0.3835]
[1725025230080,4.52259185,2525.6,2525.4,0.3959]
[1725025230379,4.52259185,2525.6,2525.3,0.59921001]
[1725025230380,4.91845185,2525.8,2525.6,0.39588]
[1725025230683,4.30945517,2525.6,2525.5,0.39589]
[1725025230876,4.30945517,2525.6,2525.5,1.98485503]
[1725025231074,4.30945517,2525.7,2525.6,0.39588]
[1725025231281,3.2078,2526.0,2525.9,0.39583]
[1725025231486,0.40173437,2526.2,2526.1,0.3958]
[1725025231487,0.00593437,2526.2,2526.1,0.3958]
[1725025231677,0.40172437,2526.2,2525.8,3.2078]
[1725025231886,0.40172437,2526.2,2526.0,0.39581]
[1725025232182,0.00593437,2526.2,2526.1,0.3958]
[1725025232373,0.00593437,2526.2,2525.6,5.2754]
[1725025232374,4.96304744,2526.1,2525.6,5.2754]
[1725025232574,4.96304744,2526.1,2525.9,0.39583]
[1725025232778,0.99542437,2526.2,2525.6,0.7154]
[1725025232991,0.99542437,2526.2,2525.7,0.59904208]
[1725025232992,0.39585,2525.8,2525.7,0.59904208]
[1725025233279,0.39588,2525.6,2525.5,3.6037]
[1725025233481,0.39588,2525.6,2525.5,3.80700536]
[1725025233677,0.39588,2525.6,2525.3,0.7189]
[1725025233678,0.98978,2525.5,2525.3,3.2078]
[1725025233875,0.39594,2525.2,2525.1,0.00593437]
[1725025234073,1.38581,2525.2,2525.1,0.60525994]
[1725025234273,5.68858266,2525.2,2525.1,0.60525994]
[1725025235273,4.69871266,2525.2,2525.1,0.60525994]
[1725025235482,0.98972,2525.6,2525.1,5.16469432]
[1725025235776,0.39594,2525.2,2525.1,0.60525994]
[1725025235988,0.39594,2525.3,2525.1,1.60069313]
[1725025236287,4.28067663,2525.2,2525.1,1.00120994]
[1725025236478,4.67659663,2525.4,2525.1,1.20463924]
[1725025236479,0.39593,2525.3,2525.1,1.20463924]
[1725025236680,4.676842,2525.3,2525.1,1.00120994]
[1725025237385,4.676842,2525.3,2525.2,0.39594]
[1725025237386,4.280912,2525.3,2525.2,0.39594]
[1725025237686,4.4144037,2525.2,2525.1,1.00120994]
[1725025237987,0.39592,2525.4,2525.2,0.39594]
[1725025238184,0.39592,2525.4,2525.1,1.20455982]
[1725025238185,0.39593,2525.3,2525.1,1.00120994]
[1725025238381,4.4144037,2525.2,2525.1,1.00120994]
[1725025238596,0.3959,2525.5,2525.3,0.39593]
[1725025238891,0.39589,2525.6,2525.2,3.2078]
[1725025239077,0.39589,2525.6,2525.4,0.39591]
[1725025239275,4.57908708,2525.6,2525.4,0.39591]
[1725025239489,4.18319708,2525.7,2525.2,3.5743]
[1725025239784,3.2078,2525.8,2525.7,0.39587]
[1725025239974,3.2078,2525.8,2525.5,0.39589]
[1725025240178,3.2078,2525.8,2525.2,3.5743]
[1725025240179,4.74321913,2525.7,2525.6,0.39588]
[1725025240500,0.39587,2525.7,2525.6,0.39588]
[1725025240791,4.5498832,2525.7,2525.6,0.39588]
[1725025241097,0.39589,2525.6,2525.4,0.3959]